fUST/lending_fUST_20260103
["ID","MTS","AMOUNT","RATE_DAILY","PERIOD"]
[400336975,1767388237739,-3461.58916473,0.00010646,2]
[400336976,1767388237847,-2334.81788199,0.00010646,2]
[400336977,1767388237859,-3358.86795463,0.00010646,2]
[400337511,1767389323781,1765.34734148,8.9e-05,2]
[400337583,1767389431778,-275.88836642,9.999e-05,2]
[400337584,1767389431788,-835.0,9.999e-05,2]
[400337586,1767389431797,-300.0,9.999e-05,2]
[400337588,1767389431807,-300.0,9.999e-05,2]
[400337590,1767389431817,-300.0,9.999e-05,2]
[400337592,1767389431827,-22613.86224411,0.0001,2]
[400337594,1767389431836,-150.0,0.00010472,2]
[400337596,1767389431846,-150.0,0.00010472,2]
[400337599,1767389431855,-150.0,0.00010472,2]
[400337600,1767389431865,-150.0,0.00010472,2]
[400337604,1767389431874,-150.0,0.00010472,2]
[400337607,1767389431884,-150.0,0.00010472,2]
[400337609,1767389431893,-15725.3909557,0.00010472,2]
[400337611,1767389431905,-150.0,0.00010609,2]
[400337613,1767389431914,-212.74105409,0.00010609,2]
[400337614,1767389431924,-150.0,0.00010609,2]
[400337615,1767389431933,-150.0,0.00010609,2]
[400337616,1767389431942,-150.0,0.00010609,2]
[400337617,1767389431952,-261.9320429,0.00010636,2]
[400337618,1767389431961,-500.0,0.00010636,2]
[400337619,1767389431970,-500.0,0.00010636,2]
[400337620,1767389431979,-334.07573869,0.00010637,2]
[400337621,1767389431988,-219.80042926,0.00010637,2]
[400337622,1767389431997,-500.0,0.00010637,2]
[400337623,1767389432007,-500.0,0.00010637,2]
[400337624,1767389432016,-500.0,0.00010637,2]
[400337625,1767389432025,-500.0,0.00010637,2]
[400337626,1767389432035,-482.04599034,0.00010637,2]
[400337627,1767389432044,-500.0,0.00010637,2]
[400337628,1767389432053,-500.0,0.00010637,2]
[400337629,1767389432062,-500.0,0.00010637,2]
[400337630,1767389432072,-500.0,0.00010637,2]
[400337631,1767389432081,-500.0,0.00010637,2]
[400337632,1767389432090,-326.51741249,0.00010637,2]
[400337633,1767389432099,-500.0,0.00010637,2]
[400337634,1767389432108,-500.0,0.00010637,2]
[400337635,1767389432119,-500.0,0.00010637,2]
[400337636,1767389432128,-500.0,0.00010637,2]
[400337638,1767389432137,-500.0,0.00010637,2]
[400337639,1767389432146,-560.0622841,0.00010637,2]
[400337641,1767389432156,-500.0,0.00010637,2]
[400337643,1767389432165,-500.0,0.00010637,2]
[400337645,1767389432174,-500.0,0.00010637,2]
[400337647,1767389432183,-500.0,0.00010637,2]
[400337649,1767389432193,-500.0,0.00010637,2]
[400337651,1767389432202,-500.0,0.00010637,2]
[400337653,1767389432211,-500.0,0.00010637,2]
[400337655,1767389432221,-562.22914267,0.00010637,2]
[400337657,1767389432230,-500.0,0.00010637,2]
[400337659,1767389432239,-500.0,0.00010637,2]
[400337661,1767389432248,-500.0,0.00010637,2]
[400337663,1767389432257,-500.0,0.00010637,2]
[400337665,1767389432266,-500.0,0.00010637,2]
[400337667,1767389432275,-500.0,0.00010637,2]
[400337669,1767389432284,-500.0,0.00010637,2]
[400337671,1767389432294,-500.0,0.00010637,2]
[400337673,1767389432303,-500.0,0.00010637,2]
[400337675,1767389432312,-500.0,0.00010637,2]
[400337677,1767389432322,-500.0,0.00010637,2]
[400337679,1767389432331,-500.0,0.00010637,2]
[400337681,1767389432341,-500.0,0.00010637,2]
[400337683,1767389432350,-500.0,0.00010637,2]
[400337685,1767389432359,-500.0,0.00010637,2]
[400337687,1767389432369,-500.0,0.00010637,2]
[400337689,1767389432380,-500.0,0.00010637,2]
[400337691,1767389432389,-500.0,0.00010637,2]
[400337693,1767389432398,-500.0,0.00010637,2]
[400337695,1767389432408,-500.0,0.00010637,2]
[400337697,1767389432417,-500.0,0.00010637,2]
[400337699,1767389432426,-500.0,0.00010637,2]
[400337701,1767389432436,-500.0,0.00010637,2]
[400337703,1767389432446,-500.0,0.00010637,2]
[400337705,1767389432455,-500.0,0.00010637,2]
[400337707,1767389432464,-500.0,0.00010637,2]
[400337709,1767389432473,-500.0,0.00010637,2]
[400337711,1767389432482,-500.0,0.00010637,2]
[400337713,1767389432493,-500.0,0.00010637,2]
[400337715,1767389432502,-500.0,0.00010637,2]
[400337717,1767389432511,-500.0,0.00010637,2]
[400337719,1767389432520,-500.0,0.00010637,2]
[400337721,1767389432529,-500.0,0.00010637,2]
[400337723,1767389432538,-500.0,0.00010637,2]
[400337725,1767389432547,-500.0,0.00010637,2]
[400337727,1767389432557,-500.0,0.00010637,2]
[400337729,1767389432569,-500.0,0.00010637,2]
[400337731,1767389432578,-500.0,0.00010637,2]
[400337732,1767389432587,-500.0,0.00010637,2]
[400337734,1767389432597,-500.0,0.00010637,2]
[400337736,1767389432606,-500.0,0.00010637,2]
[400337738,1767389432616,-500.0,0.00010637,2]
[400337740,1767389432627,-500.0,0.00010637,2]
[400337742,1767389432637,-500.0,0.00010637,2]
[400337743,1767389432647,-500.0,0.00010637,2]
[400337744,1767389432656,-500.0,0.00010637,2]
[400337745,1767389432666,-500.0,0.00010637,2]
[400337746,1767389432675,-500.0,0.00010637,2]
[400337747,1767389432685,-500.0,0.00010637,2]
[400337748,1767389432694,-500.0,0.00010637,2]
[400337749,1767389432704,-500.0,0.00010637,2]
[400337750,1767389432713,-500.0,0.00010637,2]
[400337751,1767389432722,-500.0,0.00010637,2]
[400337752,1767389432731,-500.0,0.00010637,2]
[400337753,1767389432740,-500.0,0.00010637,2]
[400337754,1767389432750,-500.0,0.00010637,2]
[400337755,1767389432759,-500.0,0.00010637,2]
[400337756,1767389432768,-500.0,0.00010637,2]
[400337757,1767389432778,-500.0,0.00010637,2]
[400337758,1767389432788,-500.0,0.00010637,2]
[400337759,1767389432797,-500.0,0.00010637,2]
[400337760,1767389432807,-500.0,0.00010637,2]
[400337761,1767389432816,-500.0,0.00010637,2]
[400337762,1767389432825,-500.0,0.00010637,2]
[400337763,1767389432835,-500.0,0.00010637,2]
[400337764,1767389432844,-500.0,0.00010637,2]
[400337765,1767389432853,-500.0,0.00010637,2]
[400337766,1767389432864,-500.0,0.00010637,2]
[400337767,1767389432875,-297.93911044,0.00010637,2]
[400337768,1767389432884,-500.0,0.00010637,2]
[400337769,1767389432894,-500.0,0.00010637,2]
[400337770,1767389432903,-500.0,0.00010637,2]
[400337771,1767389432912,-500.0,0.00010637,2]
[400337772,1767389432923,-500.0,0.00010645,2]
[400337773,1767389432932,-957.64,0.00010815,2]
[400337774,1767389432941,-500.0,0.00010959,2]
[400337775,1767389432950,-340.37242397,0.00010987,2]
[400337776,1767389432960,-420.0,0.00010999,2]
[400337777,1767389432969,-1915.28,0.00011229,2]
[400337778,1767389432979,-961.42238468,0.00011435,2]
[400337779,1767389432989,-2872.92,0.0001174,2]
[400337780,1767389432999,-1041.66666667,0.00011866,2]
[400337781,1767389433008,-325.54827237,0.00011999,2]
[400337782,1767389433017,-587.0,0.00012099,2]
[400337783,1767389433026,-3394.8142769,0.00012161,2]
[400337784,1767389433036,-304.2169263,0.00012229,2]
[400337785,1767389433046,-822.3542779,0.0001225,2]
[400337786,1767389433060,-3008.1957221,0.0001225,2]
[400337787,1767389433070,-708.58,0.00012329,2]
[400337788,1767389433079,-590.49,0.00012329,2]
[400337789,1767389433088,-188.03498049,0.00012329,2]
[400337790,1767389433442,-500.0,0.00010636,2]
[400337791,1767389433451,-500.0,0.00010959,2]
[400337792,1767389433462,-304.03501951,0.00012329,2]
[400337793,1767389433473,-410.06,0.00012329,2]
[400337794,1767389433482,-341.72,0.00012329,2]
[400337795,1767389433491,-284.76,0.00012329,2]
[400337796,1767389433500,-237.3,0.00012329,2]
[400337797,1767389433511,-197.75,0.00012329,2]
[400337798,1767389433520,-164.79,0.00012329,2]
[400337799,1767389433530,-318.77611474,0.00012329,2]
[400337807,1767389437986,-500.0,0.00010636,2]
[400337808,1767389437997,-500.0,0.00010636,2]
[400337809,1767389438006,-500.0,0.00010636,2]
[400337810,1767389438016,-226.37627585,0.00010636,2]
[400337811,1767389438028,-500.0,0.00010636,2]
[400337812,1767389438037,-500.0,0.00010636,2]
[400337813,1767389438047,-500.0,0.00010636,2]
[400337814,1767389438056,-500.0,0.00010636,2]
[400337815,1767389438067,-500.0,0.00010636,2]
[400337816,1767389438082,-500.0,0.00010636,2]
[400337817,1767389438092,-500.0,0.00010636,2]
[400337818,1767389438101,-500.0,0.00010959,2]
[400337819,1767389438112,-500.0,0.00010959,2]
[400337820,1767389438124,-517.67013115,0.00010959,2]
[400337821,1767389438134,-505.22388526,0.00012329,2]
[400337822,1767389438145,-265.97859673,0.00012451,2]
[400337823,1767389438155,-209.40437684,0.00012451,2]
[400337824,1767389438166,-250.0,0.00012468,2]
[400337825,1767389438176,-883.0,0.00012491,2]
[400337826,1767389438186,-239.942,0.00012491,2]
[400337827,1767389438197,-416.0,0.00012491,2]
[400337828,1767389438207,-500.0,0.00012603,2]
[400337829,1767389438218,-4788.19,0.00012772,2]
[400337830,1767389438229,-304.21692626,0.00012976,2]
[400337831,1767389438239,-217.15233878,0.00012999,2]
[400337832,1767389438249,-500.0,0.00013273,2]
[400337833,1767389438259,-500.0,0.00013273,2]
[400337834,1767389438270,-500.0,0.00013273,2]
[400337835,1767389438278,-427.67340165,0.00013273,2]
[400337836,1767389438292,-72.32659835,0.00013273,2]
[400337837,1767389438303,-500.0,0.00013273,2]
[400337838,1767389438313,-500.0,0.00013273,2]
[400337839,1767389438322,-500.0,0.00013273,2]
[400337840,1767389438331,-500.0,0.00013273,2]
[400337841,1767389438340,-500.0,0.00013273,2]
[400337842,1767389438349,-179.25919058,0.00013273,2]
[400337843,1767389438358,-500.0,0.00013273,2]
[400337844,1767389438367,-500.0,0.00013273,2]
[400337845,1767389438376,-500.0,0.00013273,2]
[400337846,1767389438386,-500.0,0.00013273,2]
[400337847,1767389438395,-500.0,0.00013273,2]
[400337848,1767389438406,-500.0,0.00013273,2]
[400337849,1767389438415,-176.686,0.00013273,2]
[400337850,1767389438424,-5745.83,0.00013283,2]
[400337851,1767389438434,-823.0,0.00013309,2]
[400337852,1767389438444,-266.2908964,0.00013425,2]
[400337853,1767389438454,-154.05244233,0.00013547,2]
[400337854,1767389438463,-300.0,0.00013673,2]
[400337855,1767389438472,-8415.96612324,0.00013696,2]
[400337856,1767389438481,-404.51053542,0.00013699,2]
[400337857,1767389438491,-1225.953564,0.00013699,2]
[400337858,1767389438501,-1000.0,0.00013699,2]
[400337859,1767389438510,-1490.216324,0.00013699,2]
[400337860,1767389438519,-500.0,0.00013699,2]
[400337861,1767389438528,-500.0,0.00013699,2]
[400337862,1767389438538,-152.47965923,0.00013699,2]
[400337863,1767389438547,-409.51288327,0.00013699,2]
[400337864,1767389438557,-500.0,0.00013699,2]
[400337865,1767389438566,-500.0,0.00013699,2]
[400337866,1767389438575,-500.0,0.00013699,2]
[400337867,1767389438585,-168.04272259,0.00013699,2]
[400337868,1767389438594,-500.0,0.00013699,2]
[400337869,1767389438604,-500.0,0.00013699,2]
[400337870,1767389438613,-500.0,0.00013699,2]
[400337871,1767389438626,-505.70357448,0.00013699,2]
[400337872,1767389438635,-150.17622078,0.00013699,2]
[400337873,1767389438644,-500.0,0.00013699,2]
[400337874,1767389438745,-500.0,0.00013699,2]
[400337875,1767389438761,-500.0,0.00013699,2]
[400337876,1767389438771,-500.0,0.00013699,2]
[400337877,1767389438780,-500.0,0.00013699,2]
[400337878,1767389438790,-441.77200144,0.00013699,2]
[400337879,1767389438799,-500.0,0.00013699,2]
[400337880,1767389438809,-500.0,0.00013699,2]
[400337881,1767389438818,-440.16850473,0.00013699,2]
[400337882,1767389438827,-293.74661652,0.00013699,2]
[400337883,1767389438836,-504.2982278,0.00013699,2]
[400337884,1767389438845,-500.0,0.00013699,2]
[400337885,1767389438854,-500.0,0.00013699,2]
[400337886,1767389438863,-500.0,0.00013699,2]
[400337887,1767389438872,-500.0,0.00013699,2]
[400337888,1767389438882,-500.0,0.00013699,2]
[400337889,1767389438891,-500.0,0.00013699,2]
[400337890,1767389438900,-500.0,0.00013699,2]
[400337891,1767389438910,-604.84296719,0.00013699,2]
[400337892,1767389438919,-500.0,0.00013699,2]
[400337893,1767389438929,-500.0,0.00013699,2]
[400337894,1767389438938,-500.0,0.00013699,2]
[400337895,1767389438947,-500.0,0.00013699,2]
[400337896,1767389438956,-500.0,0.00013699,2]
[400337897,1767389438965,-500.0,0.00013699,2]
[400337898,1767389438974,-70000.0,0.000137,2]
[400337899,1767389438983,-304.21692626,0.00013723,2]
[400337900,1767389438992,-6703.47,0.00013794,2]
[400337901,1767389439001,-1000.0,0.00013821,2]
[400337902,1767389439010,-1000.0,0.00013821,2]
[400337903,1767389439020,-1000.0,0.00013821,2]
[400337904,1767389439029,-1000.0,0.00013821,2]
[400337905,1767389439038,-1000.0,0.00013821,2]
[400337906,1767389439047,-1000.0,0.00013821,2]
[400337907,1767389439056,-1000.0,0.00013821,2]
[400337908,1767389439065,-1000.0,0.00013821,2]
[400337909,1767389439075,-1000.0,0.00013821,2]
[400337910,1767389439084,-1000.0,0.00013821,2]
[400337911,1767389439094,-370.97976049,0.00013821,2]
[400337912,1767389439103,-1000.0,0.00013821,2]
[400337913,1767389439112,-1000.0,0.00013821,2]
[400337914,1767389439122,-1000.0,0.00013821,2]
[400337915,1767389439131,-1000.0,0.00013821,2]
[400337916,1767389439140,-500.0,0.00013973,2]
[400337917,1767389439149,-375.20817833,0.00013999,2]
[400337918,1767389439160,-647.0,0.00014033,2]
[400337919,1767389439169,-169.0178505,0.00014047,2]
[400337920,1767389439179,-647.0,0.00014073,2]
[400337921,1767389439188,-647.0,0.00014088,2]
[400337922,1767389439198,-647.0,0.00014193,2]
[400337923,1767389439207,-151.0,0.000142,2]
[400337924,1767389439216,-600.0,0.00014221,2]
[400337925,1767389439225,-1000.0,0.00014247,2]
[400337926,1767389439234,-306.11286536,0.00014247,2]
[400337927,1767389439243,-1000.0,0.00014247,2]
[400337928,1767389439253,-535.11762739,0.00014247,2]
[400337929,1767389439262,-1000.0,0.00014247,2]
[400337930,1767389439271,-1000.0,0.00014247,2]
[400337931,1767389439280,-1130.74989865,0.00014247,2]
[400337932,1767389439289,-575.84660709,0.00014247,2]
[400337933,1767389439298,-171.90770588,0.00014247,2]
[400337934,1767389439307,-1000.0,0.00014247,2]
[400337935,1767389439317,-981.40904469,0.00014247,2]
[400337936,1767389439326,-1000.0,0.00014247,2]
[400337937,1767389439335,-1000.0,0.00014247,2]
[400337938,1767389439344,-1000.0,0.00014247,2]
[400337939,1767389439353,-970.37059089,0.00014247,2]
[400337940,1767389439362,-1000.0,0.00014247,2]
[400337941,1767389439371,-1000.0,0.00014247,2]
[400337942,1767389439380,-1000.0,0.00014247,2]
[400337943,1767389439389,-1000.0,0.00014247,2]
[400337944,1767389439399,-780.87985723,0.00014247,2]
[400337945,1767389439408,-1000.0,0.00014247,2]
[400337946,1767389439418,-1000.0,0.00014247,2]
[400337947,1767389439427,-1000.0,0.00014247,2]
[400337948,1767389439436,-697.14280947,0.00014247,2]
[400337949,1767389439445,-1000.0,0.00014247,2]
[400337950,1767389439456,-1000.0,0.00014247,2]
[400337951,1767389439465,-1000.0,0.00014247,2]
[400337952,1767389439474,-7661.11,0.00014305,2]
[400337953,1767389439485,-647.0,0.00014306,2]
[400337954,1767389439497,-1500.0,0.00014368,2]
[400337955,1767389439508,-1500.0,0.00014368,2]
[400337956,1767389439517,-1500.0,0.00014368,2]
[400337957,1767389439526,-1500.0,0.00014368,2]
[400337958,1767389439537,-1500.0,0.00014368,2]
[400337959,1767389439546,-1500.0,0.00014368,2]
[400337960,1767389439556,-1500.0,0.00014368,2]
[400337961,1767389439566,-500.0,0.00014368,2]
[400337962,1767389439575,-1500.0,0.00014368,2]
[400337963,1767389439585,-1500.0,0.00014368,2]
[400337964,1767389439594,-1500.0,0.00014368,2]
[400337965,1767389439604,-1500.0,0.00014368,2]
[400337966,1767389439613,-1500.0,0.00014368,2]
[400337967,1767389439624,-1500.0,0.00014368,2]
[400337968,1767389439635,-151.0,0.000144,2]
[400337969,1767389439647,-647.0,0.00014405,2]
[400337970,1767389439656,-304.21692626,0.00014469,2]
[400337971,1767389439667,-647.0,0.0001454,2]
[400337973,1767389439676,-151.0,0.000146,2]
[400337975,1767389439685,-1152.0,0.0001464,2]
[400337977,1767389439695,-163.48312023,0.000147,2]
[400337978,1767389439705,-56336.7362639,0.00014736,2]
[400337979,1767389439718,-3880.21916373,0.00014736,2]
[400338515,1767389446134,-851.78723781,0.00014736,2]
[400338593,1767390480337,-536.76,0.00010592,2]
[400338594,1767390480358,-34.24,0.00010625,2]
[400338595,1767390480389,-1073.51,0.00010625,2]
[400338596,1767390480444,-271.36439342,0.00010625,2]
[400338597,1767390480492,-2458.88192682,0.00010625,2]
[400338598,1767390480643,-571.0,0.00010732,2]
[400338599,1767390480664,-271.36439342,0.00010752,2]
[400338600,1767390480686,-767.90560658,0.00011096,2]
[400338601,1767390480756,-305.60439342,0.00011096,2]
[400338602,1767390480777,-1493.49489292,0.000116,2]
[400338603,1767390480866,-116.77510708,0.000116,2]
[400338604,1767390480888,-183.22489292,0.0001196,2]
[400338606,1767390535759,495.77,0.00010602,2]
[400338608,1767390607952,169.9057536,5.935e-05,2]
[400338646,1767390632061,-489.46,0.00010781,2]
[400338648,1767390632070,-768.86947182,0.00011295,2]
[400338652,1767390632097,-210.05052818,0.00011295,2]
[400338654,1767390632108,-1468.37,0.00011808,2]
[400338656,1767390632118,-1041.66666667,0.00011961,2]
[400338658,1767390632127,-3391.4962741,0.00011961,2]
[400338660,1767390632136,-1957.83,0.00012321,2]
[400338662,1767390632145,-604.72,0.00012329,2]
[400338665,1767390632163,-300.0,0.0001262,2]
[400338667,1767390632180,-416.0,0.00012732,2]
[400338670,1767390632195,-883.0,0.00012732,2]
[400338673,1767390632212,-239.942,0.00012732,2]
[400338675,1767390632229,-320.20998423,0.00012752,2]
[400338678,1767390632246,-2447.29,0.00012835,2]
[400338681,1767390632262,-500.0,0.00013092,2]
[400338683,1767390632277,-500.0,0.00013273,2]
[400338686,1767390632293,-500.0,0.00013273,2]
[400338689,1767390632308,-500.0,0.00013273,2]
[400338691,1767390632322,-500.0,0.00013273,2]
[400338693,1767390632340,-500.0,0.00013273,2]
[400338696,1767390632357,-500.0,0.00013273,2]
[400338699,1767390632376,-500.0,0.00013273,2]
[400338701,1767390632394,-583.56091673,0.00013273,2]
[400338703,1767390632406,-500.0,0.00013273,2]
[400338706,1767390632419,-500.0,0.00013273,2]
[400338709,1767390632436,-500.0,0.00013273,2]
[400338711,1767390632448,-500.0,0.00013273,2]
[400338714,1767390632463,-500.0,0.00013273,2]
[400338716,1767390632475,-500.0,0.00013273,2]
[400338718,1767390632487,-2936.75,0.00013348,2]
[400338721,1767390632503,-179.549,0.00013441,2]
[400338723,1767390632517,-169.07899536,0.00013494,2]
[400338726,1767390632529,-169.07899534,0.00013546,2]
[400338728,1767390632542,-500.0,0.00013592,2]
[400338731,1767390632556,-500.0,0.00013592,2]
[400338733,1767390632569,-500.0,0.00013592,2]
[400338736,1767390632582,-500.0,0.00013592,2]
[400338738,1767390632595,-500.0,0.00013592,2]
[400338740,1767390632608,-500.0,0.00013592,2]
[400338743,1767390632621,-530.30795965,0.00013592,2]
[400338745,1767390632634,-500.0,0.00013592,2]
[400338748,1767390632647,-500.0,0.00013592,2]
[400338750,1767390632660,-500.0,0.00013592,2]
[400338752,1767390632673,-500.0,0.00013592,2]
[400338755,1767390632686,-500.0,0.00013592,2]
[400338757,1767390632698,-500.0,0.00013592,2]
[400338760,1767390632711,-500.0,0.00013592,2]
[400338762,1767390632724,-227.53565223,0.00013592,2]
[400338765,1767390632736,-500.0,0.00013592,2]
[400338766,1767390632750,-550.68785741,0.00013592,2]
[400338769,1767390632763,-500.0,0.00013592,2]
[400338771,1767390632776,-250.0,0.00013592,2]
[400338772,1767390632789,-500.0,0.00013592,2]
[400338773,1767390632802,-500.0,0.00013592,2]
[400338774,1767390632815,-500.0,0.00013592,2]
[400338775,1767390632828,-500.0,0.00013592,2]
[400338776,1767390632841,-500.0,0.00013592,2]
[400338777,1767390632853,-423.52661125,0.00013592,2]
[400338778,1767390632866,-500.0,0.00013592,2]
[400338779,1767390632879,-500.0,0.00013592,2]
[400338780,1767390632892,-500.0,0.00013592,2]
[400338781,1767390632905,-500.0,0.00013592,2]
[400338782,1767390632918,-500.0,0.00013592,2]
[400338783,1767390632930,-500.0,0.00013592,2]
[400338784,1767390632943,-500.0,0.00013592,2]
[400338785,1767390632958,-500.0,0.00013592,2]
[400338786,1767390632969,-500.0,0.00013592,2]
[400338787,1767390632978,-500.0,0.00013592,2]
[400338788,1767390632987,-500.0,0.00013592,2]
[400338789,1767390632996,-500.0,0.00013592,2]
[400338790,1767390633147,-500.0,0.00013592,2]
[400338791,1767390633162,-500.0,0.00013592,2]
[400338792,1767390633171,-167.57378312,0.00013592,2]
[400338793,1767390633183,-332.42621688,0.00013592,2]
[400338794,1767390633193,-500.0,0.00013592,2]
[400338795,1767390633202,-500.0,0.00013592,2]
[400338796,1767390633216,-500.0,0.00013592,2]
[400338797,1767390633225,-500.0,0.00013592,2]
[400338798,1767390633234,-500.0,0.00013592,2]
[400338799,1767390633243,-500.0,0.00013592,2]
[400338800,1767390633252,-500.0,0.00013592,2]
[400338801,1767390633261,-500.0,0.00013592,2]
[400338802,1767390633271,-500.0,0.00013592,2]
[400338803,1767390633281,-500.0,0.00013592,2]
[400338804,1767390633290,-500.0,0.00013592,2]
[400338805,1767390633299,-500.0,0.00013592,2]
[400338806,1767390633308,-500.0,0.00013592,2]
[400338807,1767390633317,-500.0,0.00013592,2]
[400338808,1767390633326,-500.0,0.00013592,2]
[400338809,1767390633336,-500.0,0.00013592,2]
[400338810,1767390633345,-500.0,0.00013592,2]
[400338811,1767390633355,-500.0,0.00013592,2]
[400338812,1767390633364,-500.0,0.00013592,2]
[400338813,1767390633374,-500.0,0.00013592,2]
[400338814,1767390633383,-356.76882736,0.00013592,2]
[400338815,1767390633393,-500.0,0.00013592,2]
[400338816,1767390633402,-500.0,0.00013592,2]
[400338817,1767390633411,-500.0,0.00013592,2]
[400338818,1767390633422,-500.0,0.00013592,2]
[400338819,1767390633431,-500.0,0.00013592,2]
[400338820,1767390633442,-500.0,0.00013592,2]
[400338821,1767390633452,-500.0,0.00013592,2]
[400338822,1767390633462,-500.0,0.00013592,2]
[400338823,1767390633471,-500.0,0.00013592,2]
[400338824,1767390633480,-500.0,0.00013592,2]
[400338825,1767390633490,-500.0,0.00013592,2]
[400338826,1767390633499,-500.0,0.00013592,2]
[400338827,1767390633508,-500.0,0.00013592,2]
[400338828,1767390633518,-500.0,0.00013592,2]
[400338829,1767390633527,-466.73950126,0.00013592,2]
[400338830,1767390633536,-500.0,0.00013592,2]
[400338831,1767390633545,-500.0,0.00013592,2]
[400338832,1767390633554,-500.0,0.00013592,2]
[400338833,1767390633563,-500.0,0.00013592,2]
[400338834,1767390633572,-500.0,0.00013592,2]
[400338835,1767390633581,-500.0,0.00013592,2]
[400338836,1767390633591,-500.0,0.00013592,2]
[400338837,1767390633600,-500.0,0.00013592,2]
[400338838,1767390633611,-500.0,0.00013592,2]
[400338839,1767390633620,-218.52661125,0.00013592,2]
[400338840,1767390633629,-500.0,0.00013598,2]
[400338841,1767390633639,-500.0,0.00013598,2]
[400338842,1767390633648,-245.6708699,0.00013598,2]
[400338843,1767390633657,-500.0,0.00013598,2]
[400338844,1767390633666,-500.0,0.00013598,2]
[400338845,1767390633675,-500.0,0.00013598,2]
[400338846,1767390633684,-500.0,0.00013598,2]
[400338847,1767390633693,-500.0,0.00013598,2]
[400338848,1767390633701,-500.0,0.00013598,2]
[400338849,1767390633713,-500.0,0.00013598,2]
[400338850,1767390633722,-500.0,0.00013598,2]
[400338851,1767390633732,-500.0,0.00013598,2]
[400338852,1767390633741,-483.70762546,0.00013598,2]
[400338853,1767390633750,-500.0,0.00013598,2]
[400338854,1767390633759,-500.0,0.00013598,2]
[400338855,1767390633768,-500.0,0.00013598,2]
[400338856,1767390633777,-500.0,0.00013598,2]
[400338857,1767390633786,-503.00304686,0.00013598,2]
[400338858,1767390633795,-500.0,0.00013598,2]
[400338859,1767390633804,-500.0,0.00013598,2]
[400338860,1767390633814,-500.0,0.00013598,2]
[400338861,1767390633823,-500.0,0.00013598,2]
[400338862,1767390633831,-500.0,0.00013598,2]
[400338863,1767390633841,-500.0,0.00013598,2]
[400338864,1767390633850,-169.07899534,0.00013598,2]
[400338865,1767390633859,-36633.08522452,0.00013599,2]
[400338885,1767390638457,-2472.99554256,0.00013599,2]
[400338887,1767390638470,-435.0,0.00013599,2]
[400339192,1767390644490,-1959.42071875,0.00013599,2]
[400339205,1767390647778,-420.0,0.00013599,2]
[400339206,1767390647902,-778.77913156,0.00013599,2]
[400339207,1767390647917,-907.21964252,0.00013599,2]
[400339208,1767390647928,-3296.65674961,0.00013599,2]
[400339287,1767391832136,-262.56464087,0.00010942,2]
[400339289,1767391832147,-358.64,0.00011412,2]
[400339291,1767391832157,-190.4313762,0.00011741,2]
[400339293,1767391832166,-611.37267765,0.00011861,2]
[400339295,1767391832178,-430.29398902,0.00011861,2]
[400339297,1767391832188,-99.44126825,0.00012449,2]
[400339300,1767391832207,-617.83873175,0.00012449,2]
[400339302,1767391832216,-296.0,0.00012731,2]
[400339303,1767391832226,-300.0,0.00012731,2]